[Event "*** Titled Tuesday 3|2 Blitz"]
[Site "Chess.com"]
[Date "2015.06.02"]
[Round "7"]
[White "megarompa"]
[Black "zmaj23"]
[Result "1-0"]
[WhiteElo "2691"]
[BlackElo "2418"]
[TimeControl "180+2"]
[EndTime "12:32:05 PDT"]
[Termination "megarompa won by resignation"]

1. d4 {[%clk 0:03:01.9]} 1... Nf6 {[%clk 0:03:00.4]} 2. Nf3 {[%clk 0:03:02.7]}
2... e6 {[%clk 0:03:01.5]} 3. Bg5 {[%clk 0:03:00.9]} 3... h6 {[%clk 0:03:01.1]}
4. Bxf6 {[%clk 0:02:59.2]} 4... Qxf6 {[%clk 0:03:01.6]} 5. e4 {[%clk 0:03:01.1]}
5... d5 {[%clk 0:03:01.2]} 6. e5 {[%clk 0:03:01.7]} 6... Qd8 {[%clk 0:03:00]} 7.
c4 {[%clk 0:03:00.1]} 7... c5 {[%clk 0:02:58.5]} 8. cxd5 {[%clk 0:03:01.2]} 8...
exd5 {[%clk 0:02:59.1]} 9. Bb5+ {[%clk 0:03:01.4]} 9... Nc6 {[%clk 0:02:59.6]}
10. O-O {[%clk 0:03:02.6]} 10... Be7 {[%clk 0:02:58.6]} 11. Nc3 {[%clk 0:03:01]}
11... O-O {[%clk 0:02:55.1]} 12. dxc5 {[%clk 0:03:02.5]} 12... Be6 {[%clk
0:02:54.7]} 13. Rc1 {[%clk 0:03:01]} 13... Bxc5 {[%clk 0:02:47.9]} 14. Na4
{[%clk 0:02:58.3]} 14... Be7 {[%clk 0:02:48.5]} 15. Bxc6 {[%clk 0:02:56.6]}
15... bxc6 {[%clk 0:02:48.8]} 16. Nd4 {[%clk 0:02:58.5]} 16... Bd7 {[%clk
0:02:44.8]} 17. Nxc6 {[%clk 0:02:59]} 17... Bxc6 {[%clk 0:02:44.2]} 18. Rxc6
{[%clk 0:03:00.6]} 18... Rb8 {[%clk 0:02:46.1]} 19. b3 {[%clk 0:02:59]} 19...
Qd7 {[%clk 0:02:44.5]} 20. Qc2 {[%clk 0:02:57.5]} 20... Rfc8 {[%clk 0:02:42.4]}
21. Rc1 {[%clk 0:02:55.9]} 21... Re8 {[%clk 0:02:39.3]} 22. f4 {[%clk
0:02:51.9]} 22... Ba3 {[%clk 0:02:39.3]} 23. Rd1 {[%clk 0:02:49.4]} 23... Qg4
{[%clk 0:02:33.6]} 24. g3 {[%clk 0:02:50.3]} 24... Rec8 {[%clk 0:02:20.6]} 25.
Rxc8+ {[%clk 0:02:47.8]} 25... Rxc8 {[%clk 0:02:21.4]} 26. Qd2 {[%clk
0:02:46.4]} 26... Bb4 {[%clk 0:02:12.5]} 27. Qd3 {[%clk 0:02:32.6]} 27... g6
{[%clk 0:02:00.8]} 28. Kg2 {[%clk 0:02:29.1]} 28... h5 {[%clk 0:01:54.3]} 29. h3
{[%clk 0:02:30]} 29... Qe6 {[%clk 0:01:52.6]} 30. Rf1 {[%clk 0:02:21.5]} 30...
Kg7 {[%clk 0:01:49.3]} 31. Qd4 {[%clk 0:02:15.1]} 31... a5 {[%clk 0:01:44.2]}
32. Qd3 {[%clk 0:02:12.2]} 32... Qc6 {[%clk 0:01:42.6]} 33. Rf3 {[%clk
0:02:13.3]} 33... Qc1 {[%clk 0:01:40.7]} 34. Rf2 {[%clk 0:02:14.6]} 34... h4
{[%clk 0:01:39.3]} 35. g4 {[%clk 0:02:05.5]} 35... Be1 {[%clk 0:01:40.2]} 36.
Re2 {[%clk 0:02:05.8]} 36... Bg3 {[%clk 0:01:38.8]} 37. f5 {[%clk 0:02:07.3]}
37... Qa1 {[%clk 0:01:31.4]} 38. f6+ {[%clk 0:02:05.5]} 38... Kg8 {[%clk
0:01:24]} 39. e6 {[%clk 0:02:02.6]} 39... Qxf6 {[%clk 0:01:18.9]} 40. e7 {[%clk
0:02:03.8]} 40... Re8 {[%clk 0:01:17.7]} 41. Qxd5 {[%clk 0:02:03.5]} 41... Bd6
{[%clk 0:01:13.7]} 42. Nb6 {[%clk 0:02:00.6]} 42... Rxe7 {[%clk 0:01:12.5]} 43.
Rf2 {[%clk 0:01:56.4]} 43... Qe6 {[%clk 0:01:12.7]} 44. Qxe6 {[%clk 0:01:57.1]}
44... Rxe6 {[%clk 0:01:12.1]} 45. Nc4 {[%clk 0:01:59]} 45... Kg7 {[%clk
0:01:09.5]} 46. Kf3 {[%clk 0:01:56.7]} 46... Bc5 {[%clk 0:00:56.7]} 47. Re2
{[%clk 0:01:55]} 47... Rf6+ {[%clk 0:00:55.5]} 48. Ke4 {[%clk 0:01:54.7]} 48...
Bb4 {[%clk 0:00:57]} 49. a3 {[%clk 0:01:51.9]} 49... Bf8 {[%clk 0:00:57.3]} 50.
Rd2 {[%clk 0:01:53.1]} 50... Rf1 {[%clk 0:00:54.8]} 51. Rd5 {[%clk 0:01:53.8]}
51... Re1+ {[%clk 0:00:53.6]} 52. Kf4 {[%clk 0:01:54.9]} 52... Rc1 {[%clk
0:00:49.1]} 53. Nxa5 {[%clk 0:01:50.2]} 53... Rc3 {[%clk 0:00:50.2]} 54. g5
{[%clk 0:01:49.5]} 54... Rxh3 {[%clk 0:00:50.9]} 55. Kg4 {[%clk 0:01:46.6]}
55... Rh1 {[%clk 0:00:47.6]} 56. a4 {[%clk 0:01:44.8]} 56... h3 {[%clk
0:00:48.1]} 57. Rd3 {[%clk 0:01:44.9]} 57... h2 {[%clk 0:00:46.4]} 58. Kg3
{[%clk 0:01:46.3]} 58... Rg1+ {[%clk 0:00:43.5]} 59. Kxh2 {[%clk 0:01:44.8]}
59... Rxg5 {[%clk 0:00:44.1]} 60. Nb7 {[%clk 0:01:46.5]} 60... Rf5 {[%clk
0:00:42.1]} 61. Kg2 {[%clk 0:01:42.9]} 61... Bb4 {[%clk 0:00:30.3]} 62. Rd4
{[%clk 0:01:41.3]} 62... Bc3 {[%clk 0:00:31.2]} 63. Rc4 {[%clk 0:01:39.9]} 63...
Be1 {[%clk 0:00:32.4]} 64. Re4 {[%clk 0:01:40.5]} 64... Bc3 {[%clk 0:00:27.8]}
65. b4 {[%clk 0:01:41.3]} 65... Rg5+ {[%clk 0:00:28.8]} 66. Kf1 {[%clk 0:01:37]}
66... f5 {[%clk 0:00:27.3]} 67. Rc4 {[%clk 0:01:36.1]} 67... Be5 {[%clk
0:00:28.7]} 68. a5 {[%clk 0:01:36.1]} 68... Rh5 {[%clk 0:00:26.7]} 69. a6 {[%clk
0:01:34.5]} 69... g5 {[%clk 0:00:28.2]} 70. a7 {[%clk 0:01:33.3]} 70... Rh1+
{[%clk 0:00:26.1]} 71. Kg2 {[%clk 0:01:34.6]} 71... Rh8 {[%clk 0:00:26.6]} 72.
Rc5 {[%clk 0:01:29.2]} 72... Bd4 {[%clk 0:00:21.8]} 73. b5 {[%clk 0:01:27]}
73... g4 {[%clk 0:00:21.1]} 74. b6 {[%clk 0:01:25]} 74... f4 {[%clk 0:00:22.4]}
75. Rg5+ {[%clk 0:01:23.3]} 75... Kf6 {[%clk 0:00:23.1]} 76. Rh5 {[%clk
0:01:20.3]} 76... Rg8 {[%clk 0:00:23.7]} 77. Rd5 {[%clk 0:01:18.5]} 77... f3+
{[%clk 0:00:24.6]} 78. Kg3 {[%clk 0:01:15.4]} 78... f2 {[%clk 0:00:23.4]} 79.
Kg2 {[%clk 0:01:16.7]} 79... Bxb6 {[%clk 0:00:19.9]} 80. Rd6+ {[%clk 0:01:17.4]}
80... Ke5 {[%clk 0:00:21.8]} 81. Rxb6 {[%clk 0:01:15.6]} 81... Rf8 {[%clk
0:00:23]} 82. Rb5+ {[%clk 0:01:16]} 82... Kd4 {[%clk 0:00:16.7]} 83. Rb1 {[%clk
0:01:16.5]} 83... Kc4 {[%clk 0:00:15.1]} 84. Ra1 {[%clk 0:01:12.7]} 84... Kc3
{[%clk 0:00:11.5]} 85. Nd6 {[%clk 0:01:14]} 85... Kb2 {[%clk 0:00:10.8]} 86. Rf1
{[%clk 0:01:14.2]} 86... Ra8 {[%clk 0:00:10.9]} 87. Rxf2+ {[%clk 0:01:14.8]}
87... Kb3 {[%clk 0:00:12.6]} 88. Rf7 {[%clk 0:01:11.4]} 88... Kb4 {[%clk
0:00:12.1]} 89. Rb7+ {[%clk 0:01:09.8]} 89... Kc5 {[%clk 0:00:11.8]} 90. Nb5
{[%clk 0:01:05]} 1-0

[Event "*** Titled Tuesday 3|2 Blitz"]
[Site "Chess.com"]
[Date "2015.06.02"]
[Round "7"]
[White "AlexanderL"]
[Black "MITerryble"]
[Result "1/2-1/2"]
[WhiteElo "2533"]
[BlackElo "2532"]
[TimeControl "180+2"]
[EndTime "12:32:15 PDT"]
[Termination "Game drawn - insufficient material"]

1. d4 {[%clk 0:03:01.9]} 1... e6 {[%clk 0:03:00.9]} 2. Bf4 {[%clk 0:03:02.3]}
2... Nf6 {[%clk 0:03:00.7]} 3. e3 {[%clk 0:03:03.2]} 3... b6 {[%clk 0:02:59.6]}
4. Nf3 {[%clk 0:03:02.2]} 4... Bb7 {[%clk 0:03:00]} 5. h3 {[%clk 0:03:03.3]}
5... Bd6 {[%clk 0:02:58.1]} 6. Bxd6 {[%clk 0:03:02.5]} 6... cxd6 {[%clk
0:02:58.6]} 7. c4 {[%clk 0:03:03.8]} 7... d5 {[%clk 0:02:53.3]} 8. Nc3 {[%clk
0:03:04.6]} 8... O-O {[%clk 0:02:49.6]} 9. Rc1 {[%clk 0:03:05.5]} 9... dxc4
{[%clk 0:02:48.6]} 10. Bxc4 {[%clk 0:03:06.5]} 10... d5 {[%clk 0:02:39.8]} 11.
Bd3 {[%clk 0:03:07.5]} 11... Nc6 {[%clk 0:02:38.5]} 12. O-O {[%clk 0:03:08]}
12... Rc8 {[%clk 0:02:37]} 13. Qa4 {[%clk 0:03:06]} 13... a6 {[%clk 0:02:35.3]}
14. b4 {[%clk 0:02:38.3]} 14... b5 {[%clk 0:01:45.8]} 15. Qb3 {[%clk 0:02:38.9]}
15... Qe7 {[%clk 0:01:46.7]} 16. Rb1 {[%clk 0:02:28.5]} 16... Nxb4 {[%clk
0:01:29.3]} 17. Qxb4 {[%clk 0:02:21.7]} 17... Qxb4 {[%clk 0:01:29.3]} 18. Rxb4
{[%clk 0:02:23.5]} 18... Rxc3 {[%clk 0:01:30.3]} 19. Ne5 {[%clk 0:02:25.4]}
19... Rfc8 {[%clk 0:01:19.7]} 20. a4 {[%clk 0:01:33.2]} 20... a5 {[%clk
0:00:06.3]} 21. Rxb5 {[%clk 0:01:34.3]} 21... Ba6 {[%clk 0:00:07.4]} 22. Rfb1
{[%clk 0:01:35]} 22... Bxb5 {[%clk 0:00:08.3]} 23. Rxb5 {[%clk 0:01:36.2]} 23...
Nd7 {[%clk 0:00:08.1]} 24. Nxd7 {[%clk 0:01:24.1]} 24... Rxd3 {[%clk 0:00:09.1]}
25. Rxa5 {[%clk 0:01:25.7]} 25... Ra3 {[%clk 0:00:09.6]} 26. Nc5 {[%clk
0:01:24.9]} 26... Rb8 {[%clk 0:00:08.6]} 27. Nd7 {[%clk 0:01:17]} 27... Rd8
{[%clk 0:00:07.8]} 28. Nc5 {[%clk 0:01:17.7]} 28... h5 {[%clk 0:00:06.8]} 29.
Rb5 {[%clk 0:01:15.7]} 29... Ra8 {[%clk 0:00:05.2]} 30. h4 {[%clk 0:01:03.4]}
30... R3xa4 {[%clk 0:00:04]} 31. Nxa4 {[%clk 0:01:04.2]} 31... Rxa4 {[%clk
0:00:05.9]} 32. Rb8+ {[%clk 0:01:05.4]} 32... Kh7 {[%clk 0:00:06.7]} 33. Kh2
{[%clk 0:01:06.8]} 33... Ra2 {[%clk 0:00:07.1]} 34. Kg3 {[%clk 0:01:07.4]} 34...
g6 {[%clk 0:00:08]} 35. f3 {[%clk 0:01:02.7]} 35... Kg7 {[%clk 0:00:09]} 36. Rb3
{[%clk 0:01:00.6]} 36... Rd2 {[%clk 0:00:09.7]} 37. Rb1 {[%clk 0:00:59.8]} 37...
Re2 {[%clk 0:00:08.7]} 38. Rb3 {[%clk 0:01:00.1]} 38... Rd2 {[%clk 0:00:09.9]}
39. Kh3 {[%clk 0:01:00.9]} 39... Kf6 {[%clk 0:00:10.9]} 40. g4 {[%clk
0:00:59.9]} 40... Kg7 {[%clk 0:00:11.8]} 41. gxh5 {[%clk 0:01:00.5]} 41... gxh5
{[%clk 0:00:12.6]} 42. Kg3 {[%clk 0:01:02]} 42... Kf6 {[%clk 0:00:13.2]} 43. Rb8
{[%clk 0:00:58.7]} 43... Re2 {[%clk 0:00:14.1]} 44. Rb3 {[%clk 0:00:53.7]} 44...
Kf5 {[%clk 0:00:12.1]} 45. Ra3 {[%clk 0:00:54.3]} 45... f6 {[%clk 0:00:11.7]}
46. Rb3 {[%clk 0:00:55.1]} 46... e5 {[%clk 0:00:09.7]} 47. Rd3 {[%clk
0:00:28.5]} 47... exd4 {[%clk 0:00:06.8]} 48. Rxd4 {[%clk 0:00:29]} 48... Rxe3
{[%clk 0:00:07.1]} 49. Rxd5+ {[%clk 0:00:30.5]} 49... Kg6 {[%clk 0:00:07.4]} 50.
Rd8 {[%clk 0:00:30.7]} 50... Ra3 {[%clk 0:00:06.4]} 51. Re8 {[%clk 0:00:31.4]}
51... Rb3 {[%clk 0:00:04.9]} 52. Rg8+ {[%clk 0:00:31.8]} 52... Kf7 {[%clk
0:00:05.9]} 53. Rc8 {[%clk 0:00:32]} 53... Kg6 {[%clk 0:00:05.8]} 54. Rc4 {[%clk
0:00:32.9]} 54... Ra3 {[%clk 0:00:06.4]} 55. Kf4 {[%clk 0:00:34.2]} 55... Rb3
{[%clk 0:00:07.3]} 56. Ke4 {[%clk 0:00:35.4]} 56... Ra3 {[%clk 0:00:08]} 57. f4
{[%clk 0:00:35]} 57... Rh3 {[%clk 0:00:07.9]} 58. f5+ {[%clk 0:00:34.9]} 58...
Kh6 {[%clk 0:00:09.1]} 59. Kd5 {[%clk 0:00:33.6]} 59... Re3 {[%clk 0:00:09.5]}
60. Re4 {[%clk 0:00:32.5]} 60... Rg3 {[%clk 0:00:07.9]} 61. Re6 {[%clk
0:00:24.9]} 61... Rg4 {[%clk 0:00:05.6]} 62. Rxf6+ {[%clk 0:00:21.3]} 62... Kg7
{[%clk 0:00:06.6]} 63. Ra6 {[%clk 0:00:11.1]} 63... Rxh4 {[%clk 0:00:06.9]} 64.
Ke5 {[%clk 0:00:12.8]} 64... Rh1 {[%clk 0:00:05.2]} 65. Ra7+ {[%clk 0:00:14.7]}
65... Kg8 {[%clk 0:00:04.3]} 66. Kf6 {[%clk 0:00:16.6]} 66... Rg1 {[%clk
0:00:05.4]} 67. Ra4 {[%clk 0:00:13.4]} 67... Kh7 {[%clk 0:00:06.3]} 68. Kf7
{[%clk 0:00:13.9]} 68... Kh6 {[%clk 0:00:03]} 69. f6 {[%clk 0:00:15.3]} 69...
Rf1 {[%clk 0:00:04]} 70. Ra8 {[%clk 0:00:12.5]} 70... h4 {[%clk 0:00:03.1]} 71.
Rg8 {[%clk 0:00:13.7]} 71... Kh5 {[%clk 0:00:03.7]} 72. Ke6 {[%clk 0:00:15.1]}
72... h3 {[%clk 0:00:04.1]} 73. f7 {[%clk 0:00:16.6]} 73... Kh4 {[%clk 0:00:04]}
74. f8=Q {[%clk 0:00:16.3]} 74... Rxf8 {[%clk 0:00:04.6]} 75. Rxf8 {[%clk
0:00:18.2]} 75... h2 {[%clk 0:00:06.1]} 76. Kf5 {[%clk 0:00:18.2]} 76... Kg3
{[%clk 0:00:06.9]} 77. Rg8+ {[%clk 0:00:19.1]} 77... Kf2 {[%clk 0:00:07.9]} 78.
Rh8 {[%clk 0:00:20.5]} 78... Kg2 {[%clk 0:00:08.8]} 79. Kg4 {[%clk 0:00:21.6]}
79... h1=Q {[%clk 0:00:09.7]} 80. Rxh1 {[%clk 0:00:23.3]} 80... Kxh1 {[%clk
0:00:10.8]} 1/2-1/2

[Event "*** Titled Tuesday 3|2 Blitz"]
[Site "Chess.com"]
[Date "2015.06.02"]
[Round "7"]
[White "ruifeng"]
[Black "oggy1984"]
[Result "1-0"]
[WhiteElo "2126"]
[BlackElo "2315"]
[TimeControl "180+2"]
[EndTime "12:32:24 PDT"]
[Termination "ruifeng won by resignation"]

1. e4 {[%clk 0:03:01.9]} 1... e6 {[%clk 0:02:55.1]} 2. d4 {[%clk 0:03:01.4]}
2... d5 {[%clk 0:02:53.1]} 3. Nc3 {[%clk 0:03:02.5]} 3... Bb4 {[%clk 0:02:46.6]}
4. e5 {[%clk 0:03:02.9]} 4... c5 {[%clk 0:02:43]} 5. a3 {[%clk 0:03:03.5]} 5...
Bxc3+ {[%clk 0:02:40.8]} 6. bxc3 {[%clk 0:03:04.4]} 6... Ne7 {[%clk 0:02:40.2]}
7. Nf3 {[%clk 0:03:04.8]} 7... Bd7 {[%clk 0:02:37.9]} 8. Bd3 {[%clk 0:03:01.7]}
8... Ba4 {[%clk 0:02:33.5]} 9. O-O {[%clk 0:02:57.1]} 9... c4 {[%clk 0:02:27.4]}
10. Be2 {[%clk 0:02:57.3]} 10... Nbc6 {[%clk 0:02:25.6]} 11. Rb1 {[%clk
0:02:56.5]} 11... Qc7 {[%clk 0:02:19.2]} 12. Bf4 {[%clk 0:02:05.8]} 12... Ng6
{[%clk 0:02:10.4]} 13. Bg3 {[%clk 0:02:06.4]} 13... O-O {[%clk 0:02:06]} 14. h4
{[%clk 0:02:00]} 14... Nge7 {[%clk 0:02:02.2]} 15. Qd2 {[%clk 0:01:55.7]} 15...
h6 {[%clk 0:01:59.7]} 16. h5 {[%clk 0:01:56.2]} 16... b6 {[%clk 0:01:56.4]} 17.
Bf4 {[%clk 0:01:57.1]} 17... Rfb8 {[%clk 0:01:52.5]} 18. g4 {[%clk 0:01:43.7]}
18... Kf8 {[%clk 0:01:48.9]} 19. Nh4 {[%clk 0:01:26.6]} 19... Ke8 {[%clk
0:01:44.8]} 20. Bh2 {[%clk 0:01:26.7]} 20... Kf8 {[%clk 0:01:37.1]} 21. f4
{[%clk 0:01:25.3]} 21... Qd8 {[%clk 0:01:31.8]} 22. Bg3 {[%clk 0:01:25.3]} 22...
Kg8 {[%clk 0:01:28]} 23. f5 {[%clk 0:01:25.4]} 23... Kh8 {[%clk 0:01:26]} 24. f6
{[%clk 0:01:12.9]} 24... Ng8 {[%clk 0:01:22.2]} 25. g5 {[%clk 0:01:10.8]} 25...
hxg5 {[%clk 0:01:19.8]} 26. Qxg5 {[%clk 0:01:11.1]} 26... Qf8 {[%clk 0:01:16.9]}
27. Rbc1 {[%clk 0:00:34.3]} 27... gxf6 {[%clk 0:01:10.4]} 28. exf6 {[%clk
0:00:34.7]} 28... Qh6 {[%clk 0:01:04.1]} 29. Qxh6+ {[%clk 0:00:31.4]} 29... Nxh6
{[%clk 0:01:06]} 30. Bxb8 {[%clk 0:00:32.4]} 30... Nxb8 {[%clk 0:01:02.1]} 31.
Kf2 {[%clk 0:00:31.8]} 31... Nd7 {[%clk 0:00:57.8]} 32. Ke3 {[%clk 0:00:32.4]}
32... Rg8 {[%clk 0:00:55.1]} 33. Rf2 {[%clk 0:00:24.7]} 33... Rg4 {[%clk
0:00:48.7]} 34. Bxg4 {[%clk 0:00:19.4]} 34... Nxg4+ {[%clk 0:00:50.6]} 35. Ke2
{[%clk 0:00:20.8]} 35... Nxf2 {[%clk 0:00:46.6]} 36. Kxf2 {[%clk 0:00:21.9]}
36... Nxf6 {[%clk 0:00:45.3]} 37. Ke3 {[%clk 0:00:23.1]} 37... Nxh5 {[%clk
0:00:42]} 38. Nf3 {[%clk 0:00:24]} 38... Ng7 {[%clk 0:00:38.9]} 39. Ne5 {[%clk
0:00:21]} 39... Kg8 {[%clk 0:00:35]} 40. Kd2 {[%clk 0:00:21.1]} 40... Nf5 {[%clk
0:00:31.4]} 41. Ng4 {[%clk 0:00:21.6]} 41... Nd6 {[%clk 0:00:27]} 42. Nf2 {[%clk
0:00:16.3]} 42... f6 {[%clk 0:00:24.7]} 43. Rg1+ {[%clk 0:00:16.5]} 43... Kf7
{[%clk 0:00:21.3]} 44. Rh1 {[%clk 0:00:17.8]} 44... Kg6 {[%clk 0:00:19]} 45.
Rg1+ {[%clk 0:00:19]} 45... Kf5 {[%clk 0:00:17.8]} 46. Rg7 {[%clk 0:00:19]}
46... a5 {[%clk 0:00:14.2]} 47. Rg8 {[%clk 0:00:09.5]} 47... Be8 {[%clk
0:00:11.4]} 48. Rg7 {[%clk 0:00:10.1]} 48... b5 {[%clk 0:00:11]} 49. Rg8 {[%clk
0:00:10.8]} 49... Kf4 {[%clk 0:00:10.2]} 50. Nh3+ {[%clk 0:00:08.5]} 50... Kf5
{[%clk 0:00:10.8]} 51. Nf2 {[%clk 0:00:07.2]} 51... e5 {[%clk 0:00:11.8]} 52.
dxe5 {[%clk 0:00:07.3]} 52... fxe5 {[%clk 0:00:13.7]} 53. Nh3 {[%clk 0:00:08.5]}
53... d4 {[%clk 0:00:14.1]} 54. cxd4 {[%clk 0:00:09.2]} 54... exd4 {[%clk
0:00:15.4]} 55. Rg5+ {[%clk 0:00:10.6]} 55... Kf6 {[%clk 0:00:14.2]} 56. Rd5
{[%clk 0:00:10.7]} 56... c3+ {[%clk 0:00:11.5]} 57. Kc1 {[%clk 0:00:11.4]} 57...
Ke6 {[%clk 0:00:11.8]} 58. Rxd4 {[%clk 0:00:12.1]} 58... Nc4 {[%clk 0:00:12.2]}
59. a4 {[%clk 0:00:13.1]} 59... Ke5 {[%clk 0:00:10.9]} 60. Rh4 {[%clk
0:00:13.3]} 60... Nd6 {[%clk 0:00:09.2]} 61. axb5 {[%clk 0:00:14]} 61... Bxb5
{[%clk 0:00:11.1]} 62. Nf2 {[%clk 0:00:15]} 62... Kd5 {[%clk 0:00:11.3]} 63. Nd3
{[%clk 0:00:14.7]} 63... a4 {[%clk 0:00:09]} 64. Nb4+ {[%clk 0:00:15.3]} 64...
Kc5 {[%clk 0:00:10.1]} 65. Na2 {[%clk 0:00:16.3]} 65... a3 {[%clk 0:00:09.9]}
66. Nxc3 {[%clk 0:00:17.3]} 66... Bc6 {[%clk 0:00:10.8]} 67. Kb1 {[%clk
0:00:18.1]} 67... Nc4 {[%clk 0:00:09.5]} 68. Ka2 {[%clk 0:00:18.8]} 68... Be8
{[%clk 0:00:09.7]} 69. Rf4 {[%clk 0:00:17.3]} 69... Bd7 {[%clk 0:00:10]} 70. Re4
{[%clk 0:00:17.9]} 70... Bc6 {[%clk 0:00:09.1]} 71. Rh4 {[%clk 0:00:18.4]} 71...
Be8 {[%clk 0:00:09.4]} 72. Ne4+ {[%clk 0:00:19.2]} 72... Kb4 {[%clk 0:00:09.4]}
73. Nd6 {[%clk 0:00:17.2]} 73... Bb5 {[%clk 0:00:09.2]} 74. Nxb5 {[%clk
0:00:14.7]} 74... Kxb5 {[%clk 0:00:10.1]} 75. Kb3 {[%clk 0:00:15.4]} 75... Ne3
{[%clk 0:00:09.3]} 76. Rh5+ {[%clk 0:00:14.1]} 76... Kb6 {[%clk 0:00:08.8]} 77.
Rh8 {[%clk 0:00:14.4]} 77... Kb7 {[%clk 0:00:07.4]} 78. Rh4 {[%clk 0:00:14.9]}
78... a2 {[%clk 0:00:07.1]} 79. Ra4 {[%clk 0:00:15.6]} 79... Nf1 {[%clk
0:00:03.7]} 80. Rxa2 {[%clk 0:00:16.2]} 80... Nd2+ {[%clk 0:00:05.3]} 81. Kb4
{[%clk 0:00:17.6]} 81... Ne4 {[%clk 0:00:07.2]} 82. c4 {[%clk 0:00:18.8]} 82...
Nd6 {[%clk 0:00:08.5]} 83. Rh2 {[%clk 0:00:19.7]} 83... Nc8 {[%clk 0:00:09.8]}
84. Rh6 {[%clk 0:00:19.4]} 84... Kb8 {[%clk 0:00:11.7]} 1-0